Cogmind - Beta 14 *** ADVENTURER MODE // 2024.09.14 @ 07:29:51 Player: Unit6544 Result: Destroyed by Y-45 Defender with Beam Rifle Performance ------------- Evolutions (1) 500 Regions Visited (2) 400 Robots Destroyed (20) 100 Value Destroyed (385) 385 Prototype IDs (0) 0 Alien Tech Used (0) 0 Bonus (0) 0 TOTAL SCORE: 1385 Bonus ------- None Cogmind --------- Core Integrity 0/400 Matter 63/300 Energy 100/100 System Corruption 9% Temperature Cool (27) Movement Core (350) Ox6 Location -9/Materials Parts ------- > --- POWER (1) -------- (None) > --- PROPULSION (3) --- (None) > --- UTILITY (3) ------ Large Storage Unit > --- WEAPON (2) ------- (None) > --- INVENTORY (15) --- Light Ion Engine Light Ion Engine Light Treads Improved Hover Unit Improved Hover Unit Improved Hover Unit Medium Armor Plating Hacking Suite Advanced Beam Cannon Heavy Assault Rifle Heavy Assault Rifle Autogun Autogun Autogun Autogun Peak State ------------ > --- POWER ------------ Light Ion Engine > --- PROPULSION ------- Light Treads Light Treads Light Treads > --- UTILITY ---------- Large Storage Unit Improved Terrain Scanner Medium Armor Plating > --- WEAPON ----------- Heavy Assault Rifle Autogun > --- INVENTORY -------- Light Ion Engine Light Ion Engine Aluminum Leg Aluminum Leg Aluminum Leg Visual Processing Unit Medium Armor Plating Heavy Assault Rifle Autogun Autogun Autogun Rocket Launcher Rocket Launcher [Rating: 16] Favorites ----------- Power Light Ion Engine Engine Light Ion Engine Propulsion Light Treads Treads Light Treads Leg Aluminum Leg Utility Improved Terrain Scanner Device Improved Terrain Scanner Storage Large Storage Unit Protection Medium Armor Plating Weapon Heavy Assault Rifle Energy Gun Small Laser Ballistic Gun Heavy Assault Rifle Launcher Rocket Launcher Build | -11 -10 -9 ------- Run | Yrd Mat Mat Slots Evolved 2 | . . 2 Power . | . . . Propulsion 1 | . . 1 Utility 1 | . . 1 Weapon . | . . . Parts Attached 25 | 8 5 12 Power 1 | 1 . . Engine 1 | 1 . . Core . | . . . Reactor . | . . . Propulsion 4 | 3 . 1 Treads 3 | 2 . 1 Leg 1 | 1 . . Wheel . | . . . Hover . | . . . Flight . | . . . Utility 4 | 2 1 1 Device 1 | 1 . . Storage 2 | 1 1 . Processor . | . . . Hackware . | . . . Protection 1 | . . 1 Artifact . | . . . Weapon 16 | 2 4 10 Energy Gun 1 | 1 . . Energy Cannon . | . . . Ballistic Gun 8 | 1 3 4 Ballistic Cannon . | . . . Launcher 7 | . 1 6 Special Weapon . | . . . Impact Weapon . | . . . Slashing Weapon . | . . . Piercing Weapon . | . . . Special Melee Weapon . | . . . Unidentified Prototypes . | . . . Parts Lost 8 | . . 8 Power 1 | . . 1 Propulsion 3 | . . 3 Utility 2 | . . 2 Weapon 2 | . . 2 Highest Loss Streak 8 | . . 8 To Critical Strikes . | . . . Average Slot Usage (%) 95 | . 100 91 Engine 11 | . 14 9 Treads 29 | . 28 30 Device 11 | . 14 10 Storage 12 | . 14 11 Protection 5 | . . 10 Energy Gun 1 | . 3 . Ballistic Gun 19 | . 24 15 Launcher 2 | . . 4 Peak Build Rating 16 | 9 13 16 Average Rating 12 | 6 11 14 On Entrance 7 | . 9 13 Naked Turns . | . . . Heaviest Build 39 | 12 30 39 Greatest Support 60 | 40 40 60 Greatest Overweight (x) 1 | 1 . . Average Overweight (x) . | . . . Largest Inventory Capacity 15 | 8 15 15 Average Capacity 14 | 7 14 15 Most Carried 15 | 6 15 15 Average Carried 12 | 3 11 14 Final Capacity 15 | 8 15 15 Final Carried 15 | 4 15 15 Class Distribution -------------------- 100% | Mutant Dominant Class ---------------- Mutant | -10/Materials Mutant | -9/Materials Resources | -11 -10 -9 ----------- Run | Yrd Mat Mat Matter Collected 527 | 286 106 135 Remotely . | . . . Salvage Created 396 | 77 153 166 Parts 35 | 3 10 22 Haulers Intercepted . | . . . Recyclers Shooed 2 | 1 1 . Parts Field Recycled . | . . . Retrieved Matter . | . . . Parts Self-Destructed . | . . . Prevented . | . . . Kills | -11 -10 -9 ------- Run | Yrd Mat Mat Combat Hostiles Destroyed 11 | . 6 5 Guns 5 | . 3 2 AOE 6 | . 3 3 Classes Destroyed 9 | 2 2 5 Worker 1 | . . 1 Builder 1 | . . 1 Tunneler 3 | 1 . 2 Recycler 1 | 1 . . Operator 1 | . . 1 Watcher 2 | . . 2 Swarmer 6 | . 3 3 Grunt 4 | . 3 1 Sentry 1 | . . 1 Best Kill Streak 5 | 1 3 5 Combat Bots Only 3 | . 3 3 Max Kills in Single Turn 4 | 1 2 4 Gunslinging . | . . . Exploded 2 | . 2 2 Melee . | . . . Uniques/NPCs Destroyed . | . . . Combat | -11 -10 -9 -------- Run | Yrd Mat Mat Hostile Shots Fired 175 | . 19 156 Missed 45 | . 3 42 Damage Taken 1302 | . 120 1182 Core 437 | . 26 411 Absorbed by Shields . | . . . Ignored by Resistances 400 | . 40 360 Core Remaining (%) 94 | 100 89 . Volleys Fired 36 | 4 16 16 Largest 2 | 2 2 2 Hottest 66 | 60 60 66 Shots Fired 64 | 6 29 29 Gun 43 | 6 26 11 Cannon . | . . . Launcher 21 | . 3 18 Special . | . . . Kinetic 36 | 2 23 11 Thermal 7 | 4 3 . Explosive 21 | . 3 18 Electromagnetic . | . . . Robot Hit Streak 6 | 4 6 2 Robot Miss Streak 2 | 1 2 1 Penetration Max . | . . . Secondary Targets . | . . . Shots Hit Robots 29 | 5 17 7 Core Hits 34 | 2 11 21 Critical Kills . | . . . Critical Parts Destroyed . | . . . Critical Strikes . | . . . Melee Attacks . | . . . Impact . | . . . Slashing . | . . . Piercing . | . . . Sneak Attacks . | . . . Combat Hostiles . | . . . Follow-up Attacks . | . . . Damage Inflicted 1302 | 58 440 804 Guns 404 | 58 221 125 Cannons . | . . . Explosions 896 | . 217 679 Melee . | . . . Ramming 2 | . 2 . Kinetic 349 | 25 199 125 Thermal 55 | 33 22 . Explosive 896 | . 217 679 Electromagnetic . | . . . Impact . | . . . Slashing . | . . . Piercing . | . . . Highest Corruption 9 | . . 9 Average Corruption 8 | . . 8 Corruption Purged . | . . . Corruption Blocked . | . . . Effects 3 | . . 3 Message Errors 2 | . . 2 Data Loss (minor) 1 | . . 1 Overload Shots . | . . . Overflow Damage 20 | . 20 . Projectiles . | . . . Explosions 20 | . 20 . Melee . | . . . Knockbacks . | . . . Impact . | . . . Kinetic . | . . . Secondary . | . . . Self-Inflicted Damage . | . . . Shots . | . . . Rammed 1 | . 1 . Targets Rammed 1 | . 1 . Kicked . | . . . Crushed . | . . . Highest Temperature 42 | . 24 42 Average Temperature 10 | . 9 11 Received Heat Transfer 792 | . 63 729 Siege Activations . | . . . Robots Corrupted . | . . . Combat Hostiles . | . . . Parts Fried . | . . . Impact Corruptions . | . . . Robots Melted . | . . . Combat Hostiles . | . . . Parts Melted . | . . . Heat Transferred 125 | 75 50 . Parts Sabotaged . | . . . Parts Stolen . | . . . Parts Stripped . | . . . Power Chain Reactions . | . . . Alert | -11 -10 -9 ------- Run | Yrd Mat Mat Peak Influence 242 | 10 154 242 Initial 16 | . 5 16 Average 70 | 7 49 97 Maximum Alert Level 1 | . . 1 Low Security (%) 92 | 100 100 84 Level 1 7 | . . 15 Level 2 . | . . . Level 3 . | . . . Level 4 . | . . . Level 5 . | . . . High Security . | . . . Max Security . | . . . Squads Dispatched . | . . . Investigation . | . . . Extermination . | . . . Reinforcement . | . . . Assault . | . . . Garrison . | . . . Intercept . | . . . Searches Triggered . | . . . Construction Impeded . | . . . Haulers Reinforced . | . . . Active Scanning Responses . | . . . Cargo Convoy Interrupts . | . . . Stealth | -11 -10 -9 --------- Run | Yrd Mat Mat Distress Signals 2 | . . 2 Communications Jammed . | . . . Distress Signals . | . . . Times Spotted 23 | . 9 14 Peak Tracking Total 7 | . 3 7 Tactical Retreats 3 | . 1 2 Traps | -11 -10 -9 ------- Run | Yrd Mat Mat Traps Triggered . | . . . Indirectly . | . . . Trap Hack Attempts . | . . . Triggered . | . . . Disarmed . | . . . Reprogrammed . | . . . Reused . | . . . Traps Extracted . | . . . Installed . | . . . Triggered . | . . . Machines | -11 -10 -9 ---------- Run | Yrd Mat Mat Machines Disabled 5 | . 2 3 Max in Single Turn 2 | . 2 2 Machines Repaired . | . . . Machines Dismantled . | . . . Machines Sabotaged . | . . . Overloaded Fab Kills . | . . . Hacking | -11 -10 -9 --------- Run | Yrd Mat Mat Machines Accessed . | . . . Terminals . | . . . Fabricators . | . . . Repair Stations . | . . . Recycling Units . | . . . Scanalyzers . | . . . Garrison Access . | . . . Total Hacks . | . . . Successful . | . . . Failed . | . . . Catastrophic . | . . . Database Lockouts . | . . . Manual . | . . . Terminals . | . . . Fabricators . | . . . Repair Stations . | . . . Recycling Units . | . . . Scanalyzers . | . . . Garrison Access . | . . . Terminal Hacks . | . . . Fabricator Hacks . | . . . Repair Station Hacks . | . . . Recycling Unit Hacks . | . . . Scanalyzer . | . . . Garrison Access Hacks . | . . . Unauthorized Hacks . | . . . Terminals . | . . . Fabricators . | . . . Repair Stations . | . . . Recycling Units . | . . . Scanalyzers . | . . . Garrison Access . | . . . Data Cores Recovered 1 | . . 1 Used . | . . . Hacking Detections . | . . . Full Trace Events . | . . . Feedback Events . | . . . Feedback Blocked . | . . . Robot Schematics Acquired . | . . . Robots Built . | . . . Authchips . | . . . Time . | . . . Total Robot Build Rating . | . . . Part Schematics Acquired . | . . . Parts Built . | . . . Authchips . | . . . Time . | . . . Total Part Build Rating . | . . . Parts Repaired . | . . . Time . | . . . Parts Recycled . | . . . Recycled Matter . | . . . Retrieved Matter . | . . . Retrieved Components . | . . . Parts Scanalyzed . | . . . Part Schematics Acquired . | . . . Parts Damaged . | . . . Bothacking | -11 -10 -9 ------------ Run | Yrd Mat Mat Used RIF Installer . | . . . Robots Hacked . | . . . Non-combat . | . . . Combat . | . . . Robot Hacks Applied . | . . . Relay Couplers Released . | . . . Fabnet Peak Effective % . | . . . Robots Rewired . | . . . Allies Hacked . | . . . Hacks Repelled . | . . . Allies | -11 -10 -9 -------- Run | Yrd Mat Mat Total Allies . | . . . Largest Group . | . . . Highest-Rated Group . | . . . Highest-Rated Ally . | . . . Total Orders . | . . . Ally Attacks . | . . . Total Damage . | . . . Kills . | . . . Allies Corrupted . | . . . Allies Melted . | . . . Intel | -11 -10 -9 ------- Run | Yrd Mat Mat Robot Analysis Total . | . . . Derelict Logs Recovered . | . . . Drone Launches . | . . . Drone Recoveries . | . . . Exploration | -11 -10 -9 ------------- Run | Yrd Mat Mat Turns Passed 1499 | 123 610 766 Spaces Moved 639 | 57 289 293 Core 7 | 7 . . Treads 610 | 28 289 293 Legs 22 | 22 . . Wheels . | . . . Hover . | . . . Flight . | . . . Fastest Speed 50 | 50 160 160 Average Speed 159 | 158 160 160 Slowest Speed 190 | 190 160 160 Overloaded Moves . | . . . Propulsion Burnouts . | . . . Robots Hopped . | . . . Cave-ins Triggered . | . . . Exploration Rate (%) 23 | 4 45 21 Regions Visited 2 Branch Regions . Pre-discovered Areas . | . . . Known Exits Taken . | . . . Unknown Exits Taken 2 | 1 1 . Scrap Searched . | . . . Spaces Dug . | . . . Terrain Destroyed 122 | . 5 117 Melee . | . . . Projectile . | . . . AOE 122 | . 5 117 Terrain Rammed . | . . . Walls Destroyed . | . . . Machines Disabled . | . . . Actions | -11 -10 -9 --------- Run | Yrd Mat Mat Total 1054 | 84 410 560 Wait 312 | 5 78 229 Move 637 | 56 288 293 Hop . | . . . Pick Up 33 | 11 16 6 Fast Attach . | . . . Attach 10 | 7 1 2 Detach 1 | . 1 . Swap 15 | 1 4 10 Drop 9 | . 5 4 Fire 36 | 4 16 16 Melee . | . . . Ram . | . . . Kick . | . . . Crush 1 | . 1 . Escape Stasis . | . . . Rewire . | . . . Trap . | . . . Miscellaneous . | . . . Route ------- -11/Scrapyard -10/Materials -9/Materials History --------- Turn | Location | Event 29 | -11/Scrapyard | Discovered new exit (range 15) 124 | -11/Scrapyard | Entered Materials 310 | -10/Materials | Build established: Mutant 677 | -10/Materials | Discovered new exit (range 9) 734 | -10/Materials | Entered another Materials area 734 | -9/Materials | Evolved 2 slots: Propulsion x1, Utility x1 1454 | -9/Materials | Core integrity fell below 50% 1481 | -9/Materials | Lost 8 parts (1p3n2u2w) 1484 | -9/Materials | Core integrity fell below 20% 1500 | -9/Materials | Destroyed by Y-45 Defender with Beam Rifle Last Messages --------------- Rocket Launcher destroyed. 2Y KYBZYGUL4EE4E 3II B-36 Bruiser suffers critical hit (Burn). B-36 Bruiser destroyed. U-05 Engineer destroyed. Critical hit (Burn: +37). Lgt. Treads destroyed. Acquired 23 matter. Lgt. Treads destroyed. G-34 Mercenary destroyed. XNL0XPDPM6IUYZZPGH/ HZPU, U-05 Engineer destroyed. K-01 Serf collects debris. R-06 Scavenger collects Wheel. R-06 Scavenger collects Terrain Scanner. R-06 Scavenger collects Wheel. R-06 Scavenger collects Lgt. Ion Engine. G-47 Trooper destroyed. System corrupted: Component data lost. Critical hit (Burn: +37). Map ----- +----------------------------------------------------+ | ?#""" ""# ##???????????????????????? | | ?#""" Y"# #?#?????????????????????? | | ?#""" ""##### # ##??????????????????????? | | ?# #?# ## ###?##????????????????????? | | ?##########?# # ##??#??#??????????????????? | | ???????#????# #?#?#????????????????????? | | ????????###?# "" # ####????????????????????????? | | ?#????#????## "T # # #???#????????????????????? | | #?????????#?# "" # ##??????#?????????????????? | | ???#???###### # ##????#???#??##???????????? | | ?????#?# !####### #??#?##??????????????????? | | ???????# ###??#??#?#???????????????? | | ???????# [####### #####??##??#????????????????? | | ??#???## ##?##?## ##############?#?#??????????? | | ?????#?# #??????# ###### #???????????????? | | ???#???# ##??#?## # """ ##???#??????????? | | ???????# #?#?#### # """ ##??????????????? | | ????#??# ############# # """ ##??????????????? | | ?#???### # [[ # [# # ##??????????????? | | ???????# # [[ # =+ + #???????????????? | | ???#??## + [[ # #Y ########?#?????????????? | | ????#??# # === # # #?#????????????????????? | | #????### # # # ###???#????????????????? | | ?????#?# # # # #?##????#??????????????? | | ??????## ######## #% ##?????##??????????????? | | ??????## ##??##?# # @#??##???????? ?????????? | | ???????# #?###??# #==#????#???? ?""?????????? | | ???????# #?#??#?######=!##??????????"??????????? | | ?#?????# ###???####??#%%#?#????##???"??????????? | | ???????# #???#?##?####g!###???#?#?? ???????????? | | ????#??# #??#?????# # # #??##??#?????????????? | | ???????# #??#?#??## # # ##?#????#????????????? | | ???????# #?#??##?## # ######?#????????#??????? | | ???????# ############# ####T#######???????????? | | ???????# #?#?????????? | | ???????# ##??????????? | | ???#???# #???????????? | | ???##### ################ #???#???????? | | ???# # """ #??##### ##??#???????? | | ???# # """"" #??????# """" "#??????????? | | ???# # """"" ######## """" T#??????????? | | ???######### """"" # """" "#??"???????? | | ??????#???## """ + ##??"???#? ?? | | ???????????# # #???????????? | | ???????????# = # ##T#####???????????? | | ???????????# [ # ####???????????#???? | | ???????????# # #????????#?????????? | | ?#?????????# # #########???#??????? | | ???????????# # #??????????? | | ???????????######### #??????????? | +----------------------------------------------------+ Best States ------------- Heat Dissipation 28 Energy Generation 10 Energy Capacity 125 Matter Stores 300 Matter Capacity 300 Sight Range 16 Terrain Scan Range 16 Terrain Scan Density 10 Armor Coverage 225 Resistance: KI 20 Resistance: TH 20 Resistance: EX 20 Resistance: EM 20 Resistance: I 20 Resistance: S 20 Resistance: P 20 Evasion (%) 40 Recoil Reduction 3 Offensive Hacking 10 Item Schematics ----------------- None Robot Schematics ------------------ None Fabricated ------------ Nothing Alien Tech Used ----------------- None Achievements -------------- None Challenges ------------ None Game ------ Seed ThunderMetaStorage Manual? 0 Play Time 00:15:59 Cumulative 11.8 hours Start 2024.09.14 @ 07:16:23 End 2024.09.14 @ 07:29:51 Sessions 1 Manual Loads 0 Difficulty Adventurer Special Mode None Game No. 28 Rogue 27 Adventurer 1 Explorer 0 Win Type - Total 0 Types 0/0/0/0/0/0/0/0/0 Lore% 3 Gallery% 15 Achievement% 18 Wizard Run 0 Options --------- Layout 1 ASCII 0 Keyboard 0 Movement Mouse Keybinds 0 Fullscreen 1 Font 24/Smallcaps Map View 50x40 Zoom Use 0% Tactical HUD 0 Map Filters NONE Filters NONE Steam 1 RUN: cc6b6296-d253-414c-b54d-5caa5cc1d5d3